[Event "*** Titled Tuesday Blitz"]
[Site "Chess.com"]
[Date "2018.08.07"]
[Round "2"]
[White "sandager"]
[Black "TBergh98"]
[Result "0-1"]
[WhiteElo "2042"]
[BlackElo "2030"]
[TimeControl "180+2"]
[EndTime "13:19:27 PDT"]
[Termination "TBergh98 won by resignation"]

1. e4 {[%clk 0:02:59.4]} 1... Nf6 {[%clk 0:03:00.7]} 2. e5 {[%clk 0:02:59.1]}
2... Nd5 {[%clk 0:03:02]} 3. d4 {[%clk 0:03:00.3]} 3... d6 {[%clk 0:03:03.4]} 4.
Nf3 {[%clk 0:03:01.4]} 4... dxe5 {[%clk 0:03:04.4]} 5. Nxe5 {[%clk 0:03:00.9]}
5... c6 {[%clk 0:03:05.6]} 6. Bd3 {[%clk 0:02:59.2]} 6... g6 {[%clk 0:03:06.2]}
7. O-O {[%clk 0:02:59.1]} 7... Bg7 {[%clk 0:03:07.7]} 8. a3 {[%clk 0:02:58.4]}
8... O-O {[%clk 0:03:08.8]} 9. c4 {[%clk 0:02:58.6]} 9... Nc7 {[%clk 0:03:08.9]}
10. Nc3 {[%clk 0:02:59.8]} 10... Be6 {[%clk 0:03:10]} 11. Be3 {[%clk 0:02:54.8]}
11... c5 {[%clk 0:03:04.5]} 12. Ne2 {[%clk 0:02:34.8]} 12... cxd4 {[%clk
0:02:45.5]} 13. Bxd4 {[%clk 0:02:34]} 13... Nc6 {[%clk 0:02:37.1]} 14. Nxc6
{[%clk 0:02:32.9]} 14... bxc6 {[%clk 0:02:39]} 15. Bxg7 {[%clk 0:02:32.2]} 15...
Kxg7 {[%clk 0:02:39.5]} 16. Qc2 {[%clk 0:02:31.9]} 16... Rb8 {[%clk 0:02:35.6]}
17. Rad1 {[%clk 0:02:28.6]} 17... Qc8 {[%clk 0:02:36.2]} 18. Nf4 {[%clk
0:02:28]} 18... Rd8 {[%clk 0:02:21.4]} 19. Rfe1 {[%clk 0:02:21.3]} 19... Qb7
{[%clk 0:02:15.4]} 20. b4 {[%clk 0:02:19.1]} 20... a5 {[%clk 0:02:11.2]} 21.
Qc3+ {[%clk 0:02:05.7]} 21... Kg8 {[%clk 0:02:11.5]} 22. Rb1 {[%clk 0:02:01.4]}
22... axb4 {[%clk 0:02:11.6]} 23. axb4 {[%clk 0:02:01.7]} 23... Qa7 {[%clk
0:02:08.3]} 24. h4 {[%clk 0:01:55.8]} 24... Qd4 {[%clk 0:02:08.1]} 25. Qc1
{[%clk 0:01:34]} 25... Ra8 {[%clk 0:01:54.4]} 26. Re4 {[%clk 0:01:23.3]} 26...
Qf6 {[%clk 0:01:53.2]} 27. Nxe6 {[%clk 0:00:32.7]} 27... Nxe6 {[%clk 0:01:53.7]}
28. g3 {[%clk 0:00:31.3]} 28... Rxd3 {[%clk 0:01:53.2]} 29. Qe1 {[%clk
0:00:27.2]} 29... Rad8 {[%clk 0:01:49.3]} 30. b5 {[%clk 0:00:17.1]} 30... cxb5
{[%clk 0:01:51.2]} 31. cxb5 {[%clk 0:00:17.3]} 31... Nd4 {[%clk 0:01:49.3]} 32.
Rf4 {[%clk 0:00:14.5]} 32... Nf3+ {[%clk 0:01:48.6]} 33. Rxf3 {[%clk 0:00:15.2]}
33... Qxf3 {[%clk 0:01:48]} 34. b6 {[%clk 0:00:16.6]} 34... Rd1 {[%clk
0:01:48.9]} 0-1

[Event "*** Titled Tuesday Blitz"]
[Site "Chess.com"]
[Date "2018.08.07"]
[Round "2"]
[White "LucaBrasi1968"]
[Black "Alliswell998"]
[Result "1-0"]
[WhiteElo "2489"]
[BlackElo "2427"]
[TimeControl "180+2"]
[EndTime "13:19:31 PDT"]
[Termination "LucaBrasi1968 won by checkmate"]

1. e4 {[%clk 0:02:30.9]} 1... c5 {[%clk 0:02:59.4]} 2. c3 {[%clk 0:02:31.7]}
2... d5 {[%clk 0:03:00.5]} 3. exd5 {[%clk 0:02:32.5]} 3... Nf6 {[%clk
0:03:02.1]} 4. d4 {[%clk 0:02:33.1]} 4... Nxd5 {[%clk 0:03:03.3]} 5. Nf3 {[%clk
0:02:32.2]} 5... e6 {[%clk 0:03:02.4]} 6. Bd3 {[%clk 0:02:28.1]} 6... Nc6 {[%clk
0:03:02.4]} 7. dxc5 {[%clk 0:02:27.4]} 7... Bxc5 {[%clk 0:03:02.8]} 8. O-O
{[%clk 0:02:28.9]} 8... O-O {[%clk 0:03:02.8]} 9. Bc2 {[%clk 0:02:23.6]} 9...
Nf6 {[%clk 0:02:58.7]} 10. Qe2 {[%clk 0:02:21.7]} 10... Qc7 {[%clk 0:02:56.8]}
11. Bg5 {[%clk 0:02:21.1]} 11... Be7 {[%clk 0:02:56]} 12. Nbd2 {[%clk
0:02:18.5]} 12... b6 {[%clk 0:02:56.1]} 13. Rad1 {[%clk 0:02:16.6]} 13... Bb7
{[%clk 0:02:55.6]} 14. Bh4 {[%clk 0:02:16.6]} 14... Rad8 {[%clk 0:02:54.4]} 15.
Bg3 {[%clk 0:02:17.4]} 15... Bd6 {[%clk 0:02:51]} 16. Ne4 {[%clk 0:02:13.5]}
16... Nxe4 {[%clk 0:02:50.6]} 17. Qxe4 {[%clk 0:02:13.2]} 17... g6 {[%clk
0:02:49.9]} 18. Qh4 {[%clk 0:02:05.3]} 18... Bxg3 {[%clk 0:02:47.5]} 19. hxg3
{[%clk 0:02:05.7]} 19... Rxd1 {[%clk 0:02:21.1]} 20. Rxd1 {[%clk 0:02:05.8]}
20... Ne5 {[%clk 0:02:22.1]} 21. Nxe5 {[%clk 0:01:52.6]} 21... Qxe5 {[%clk
0:02:24]} 22. Qd4 {[%clk 0:01:53.3]} 22... Qa5 {[%clk 0:02:09.8]} 23. a3 {[%clk
0:01:49.7]} 23... h5 {[%clk 0:02:03.1]} 24. Qf6 {[%clk 0:01:46.1]} 24... Bd5
{[%clk 0:01:30.8]} 25. c4 {[%clk 0:01:27.7]} 25... Bxc4 {[%clk 0:01:21]} 26.
Bxg6 {[%clk 0:01:27.8]} 26... fxg6 {[%clk 0:01:22.1]} 27. Qxg6+ {[%clk
0:01:28.4]} 27... Kh8 {[%clk 0:01:23.6]} 28. Rd7 {[%clk 0:01:21.7]} 28... Qe1+
{[%clk 0:00:24.1]} 29. Kh2 {[%clk 0:01:18.7]} 29... Qb1 {[%clk 0:00:18.2]} 30.
Qg7# {[%clk 0:01:16.3]} 1-0

[Event "*** Titled Tuesday Blitz"]
[Site "Chess.com"]
[Date "2018.08.07"]
[Round "2"]
[White "TijanaBlagojevic"]
[Black "Cocaino74"]
[Result "1-0"]
[WhiteElo "2368"]
[BlackElo "2203"]
[TimeControl "180+2"]
[EndTime "13:19:34 PDT"]
[Termination "TijanaBlagojevic won by checkmate"]

1. e4 {[%clk 0:03:01.9]} 1... d6 {[%clk 0:03:00.5]} 2. d4 {[%clk 0:03:01.3]}
2... Nf6 {[%clk 0:03:00.8]} 3. Nc3 {[%clk 0:03:02.5]} 3... Nc6 {[%clk
0:03:01.6]} 4. Nf3 {[%clk 0:02:59.5]} 4... g6 {[%clk 0:03:02.8]} 5. Be2 {[%clk
0:02:59.1]} 5... Bg7 {[%clk 0:03:03.9]} 6. O-O {[%clk 0:03:00.1]} 6... O-O
{[%clk 0:03:05.4]} 7. Re1 {[%clk 0:03:00.8]} 7... e5 {[%clk 0:03:04.7]} 8. dxe5
{[%clk 0:02:43.3]} 8... Nxe5 {[%clk 0:03:05.3]} 9. Bg5 {[%clk 0:02:41.7]} 9...
c6 {[%clk 0:02:51]} 10. Nd4 {[%clk 0:02:37.1]} 10... Re8 {[%clk 0:02:39.2]} 11.
f4 {[%clk 0:02:29.4]} 11... Ned7 {[%clk 0:02:38.8]} 12. Bf3 {[%clk 0:02:27.5]}
12... h6 {[%clk 0:02:36.3]} 13. Bh4 {[%clk 0:02:28.1]} 13... Qb6 {[%clk
0:02:33.4]} 14. Na4 {[%clk 0:02:10.5]} 14... Qa5 {[%clk 0:02:23.6]} 15. c4
{[%clk 0:02:10.6]} 15... Nc5 {[%clk 0:02:02.4]} 16. Nc3 {[%clk 0:02:08.1]} 16...
Qb4 {[%clk 0:01:35.3]} 17. e5 {[%clk 0:01:57]} 17... dxe5 {[%clk 0:01:28.6]} 18.
fxe5 {[%clk 0:01:58.9]} 18... Nfd7 {[%clk 0:01:18.4]} 19. Bf6 {[%clk 0:01:31.7]}
19... Qxc4 {[%clk 0:01:00.7]} 20. Bxg7 {[%clk 0:01:25.5]} 20... Kxg7 {[%clk
0:01:01.6]} 21. Ne4 {[%clk 0:01:23.2]} 21... Nxe5 {[%clk 0:00:41.2]} 22. Rc1
{[%clk 0:01:17.3]} 22... Nxf3+ {[%clk 0:00:40.8]} 23. gxf3 {[%clk 0:01:12.7]}
23... Qxc1 {[%clk 0:00:14.4]} 24. Qxc1 {[%clk 0:01:09.1]} 24... Nd3 {[%clk
0:00:16.3]} 25. Qc3 {[%clk 0:01:07.1]} 25... Nxe1 {[%clk 0:00:16.7]} 26. Ne6+
{[%clk 0:01:07]} 26... Kg8 {[%clk 0:00:16.9]} 27. Qg7# {[%clk 0:01:07.8]} 1-0

[Event "*** Titled Tuesday Blitz"]
[Site "Chess.com"]
[Date "2018.08.07"]
[Round "2"]
[White "Maili15"]
[Black "bilelou"]
[Result "0-1"]
[WhiteElo "2242"]
[BlackElo "2402"]
[TimeControl "180+2"]
[EndTime "13:19:47 PDT"]
[Termination "bilelou won on time"]

1. d4 {[%clk 0:03:01.9]} 1... Na6 {[%clk 0:02:56.3]} 2. c4 {[%clk 0:03:02.6]}
2... e5 {[%clk 0:02:56.5]} 3. dxe5 {[%clk 0:02:59.7]} 3... d6 {[%clk 0:02:57.6]}
4. Nf3 {[%clk 0:02:58.9]} 4... Bf5 {[%clk 0:02:58.1]} 5. Nc3 {[%clk 0:02:40.6]}
5... dxe5 {[%clk 0:02:47.6]} 6. Nxe5 {[%clk 0:01:38]} 6... Qxd1+ {[%clk
0:02:45.6]} 7. Nxd1 {[%clk 0:01:30.6]} 7... f6 {[%clk 0:02:41.4]} 8. Nf3 {[%clk
0:01:27.8]} 8... O-O-O {[%clk 0:02:39.8]} 9. Ne3 {[%clk 0:01:15.5]} 9... Be4
{[%clk 0:02:40.2]} 10. Bd2 {[%clk 0:01:11.8]} 10... Nb4 {[%clk 0:02:34.9]} 11.
a3 {[%clk 0:01:05.6]} 11... Nc6 {[%clk 0:02:34.4]} 12. O-O-O {[%clk 0:00:52.9]}
12... Nh6 {[%clk 0:02:33.5]} 13. g3 {[%clk 0:00:46.2]} 13... Nd4 {[%clk
0:02:30]} 14. Nxd4 {[%clk 0:00:35.9]} 14... Rxd4 {[%clk 0:02:28.3]} 15. Bh3+
{[%clk 0:00:29.1]} 15... Kb8 {[%clk 0:02:28.5]} 16. f3 {[%clk 0:00:29]} 16...
Bc6 {[%clk 0:02:24.4]} 17. Bc3 {[%clk 0:00:29.1]} 17... Rxd1+ {[%clk 0:02:26.3]}
18. Rxd1 {[%clk 0:00:29.4]} 18... Bc5 {[%clk 0:02:28]} 19. Nc2 {[%clk 0:00:28]}
19... Nf7 {[%clk 0:02:28]} 20. b4 {[%clk 0:00:28.6]} 20... Be7 {[%clk
0:02:26.5]} 21. e4 {[%clk 0:00:22.9]} 21... Ne5 {[%clk 0:02:26]} 22. Bxe5 {[%clk
0:00:16.7]} 22... fxe5 {[%clk 0:02:27.9]} 23. Bd7 {[%clk 0:00:14.1]} 23... Rf8
{[%clk 0:02:29]} 24. Bxc6 {[%clk 0:00:14.3]} 24... bxc6 {[%clk 0:02:30.9]} 25.
Rd3 {[%clk 0:00:15.5]} 25... Kc8 {[%clk 0:02:29.5]} 26. Kd2 {[%clk 0:00:16.8]}
26... g6 {[%clk 0:02:31.4]} 27. Ke3 {[%clk 0:00:17.7]} 27... h5 {[%clk 0:02:33]}
28. Ke2 {[%clk 0:00:18.8]} 28... h4 {[%clk 0:02:33.5]} 29. Ne3 {[%clk
0:00:19.6]} 29... Rh8 {[%clk 0:02:32.9]} 30. Kf2 {[%clk 0:00:20.7]} 30... Bg5
{[%clk 0:02:31.3]} 31. Ng4 {[%clk 0:00:21.1]} 31... hxg3+ {[%clk 0:02:29]} 32.
hxg3 {[%clk 0:00:23]} 32... Kb7 {[%clk 0:02:30.3]} 33. Nxe5 {[%clk 0:00:23.4]}
33... Rh2+ {[%clk 0:02:31.1]} 34. Kg1 {[%clk 0:00:24.5]} 34... Rc2 {[%clk
0:02:31.8]} 35. f4 {[%clk 0:00:25]} 35... Bf6 {[%clk 0:02:32.6]} 36. Nd7 {[%clk
0:00:24.1]} 36... Bb2 {[%clk 0:02:32.5]} 37. c5 {[%clk 0:00:24.6]} 37... Ka6
{[%clk 0:02:32.2]} 38. Nf8 {[%clk 0:00:25.4]} 38... Kb5 {[%clk 0:02:32.9]} 39.
Nxg6 {[%clk 0:00:26.3]} 39... Kc4 {[%clk 0:02:34.3]} 40. Rf3 {[%clk 0:00:24.8]}
40... Kd4 {[%clk 0:02:31.5]} 41. e5 {[%clk 0:00:24.5]} 41... Ke4 {[%clk
0:02:32.2]} 42. Rf1 {[%clk 0:00:24.5]} 42... Bd4+ {[%clk 0:02:32.9]} 43. Kh1
{[%clk 0:00:25.6]} 43... Kf5 {[%clk 0:02:34.3]} 44. Ne7+ {[%clk 0:00:24]} 44...
Kg4 {[%clk 0:02:34.9]} 45. Nxc6 {[%clk 0:00:24.6]} 45... Be3 {[%clk 0:02:33.6]}
46. Re1 {[%clk 0:00:15.6]} 46... Kh3 {[%clk 0:02:32.8]} 0-1

[Event "*** Titled Tuesday Blitz"]
[Site "Chess.com"]
[Date "2018.08.07"]
[Round "2"]
[White "norwaytoadog"]
[Black "Karina_Oparina"]
[Result "1-0"]
[WhiteElo "2141"]
[BlackElo "2158"]
[TimeControl "180+2"]
[EndTime "13:19:59 PDT"]
[Termination "norwaytoadog won by checkmate"]

1. e4 {[%clk 0:02:43.4]} 1... c6 {[%clk 0:02:59.8]} 2. d4 {[%clk 0:02:43.9]}
2... d5 {[%clk 0:03:01.1]} 3. e5 {[%clk 0:02:43.7]} 3... Bf5 {[%clk 0:03:00.6]}
4. Nf3 {[%clk 0:02:44.2]} 4... e6 {[%clk 0:03:00]} 5. Be2 {[%clk 0:02:45.1]}
5... Nd7 {[%clk 0:03:00.3]} 6. O-O {[%clk 0:02:45.2]} 6... Ne7 {[%clk
0:03:00.4]} 7. Be3 {[%clk 0:02:44.1]} 7... h6 {[%clk 0:02:57.7]} 8. Nbd2 {[%clk
0:02:42.4]} 8... Nc8 {[%clk 0:02:56.9]} 9. c4 {[%clk 0:02:37.8]} 9... dxc4
{[%clk 0:02:52.8]} 10. Nxc4 {[%clk 0:02:38.7]} 10... Be7 {[%clk 0:02:49.9]} 11.
a4 {[%clk 0:02:38.9]} 11... O-O {[%clk 0:02:47.5]} 12. a5 {[%clk 0:02:38.3]}
12... a6 {[%clk 0:02:42.1]} 13. Qd2 {[%clk 0:02:39.2]} 13... Na7 {[%clk
0:02:34]} 14. b4 {[%clk 0:02:30.2]} 14... Nb5 {[%clk 0:02:31.5]} 15. Ne1 {[%clk
0:02:28.5]} 15... Nc7 {[%clk 0:02:31]} 16. Nd3 {[%clk 0:02:27.1]} 16... Nd5
{[%clk 0:02:28.8]} 17. Nc5 {[%clk 0:02:16.1]} 17... Nxc5 {[%clk 0:02:16.4]} 18.
dxc5 {[%clk 0:02:07]} 18... Qd7 {[%clk 0:02:05]} 19. Nd6 {[%clk 0:02:04.7]}
19... Bxd6 {[%clk 0:01:58.3]} 20. cxd6 {[%clk 0:01:59.5]} 20... f6 {[%clk
0:01:55.8]} 21. f4 {[%clk 0:01:56.1]} 21... fxe5 {[%clk 0:01:53.9]} 22. fxe5
{[%clk 0:01:57]} 22... Bg6 {[%clk 0:01:51.7]} 23. Bc5 {[%clk 0:01:53.7]} 23...
Kh7 {[%clk 0:01:47.3]} 24. g3 {[%clk 0:01:44.9]} 24... Rae8 {[%clk 0:01:43.9]}
25. Bd3 {[%clk 0:01:45.5]} 25... Bxd3 {[%clk 0:01:40.3]} 26. Qxd3+ {[%clk
0:01:46.6]} 26... g6 {[%clk 0:01:39.7]} 27. Rf3 {[%clk 0:01:43.4]} 27... Rf7
{[%clk 0:01:37.3]} 28. Rxf7+ {[%clk 0:01:41.2]} 28... Qxf7 {[%clk 0:01:35.8]}
29. Rf1 {[%clk 0:01:41.8]} 29... Qg7 {[%clk 0:01:34.9]} 30. Qf3 {[%clk
0:01:41.9]} 30... Rd8 {[%clk 0:01:27.3]} 31. Qf7 {[%clk 0:01:33.7]} 31... Rd7
{[%clk 0:01:25.2]} 32. Qf8 {[%clk 0:01:34.3]} 32... Qg8 {[%clk 0:01:22.4]} 33.
Kg2 {[%clk 0:01:24.2]} 33... h5 {[%clk 0:01:12.1]} 34. h4 {[%clk 0:01:23.8]}
34... Rg7 {[%clk 0:00:55.7]} 35. Kh3 {[%clk 0:01:22]} 35... Rd7 {[%clk
0:00:54.9]} 36. g4 {[%clk 0:01:19.8]} 36... hxg4+ {[%clk 0:00:54.2]} 37. Kxg4
{[%clk 0:01:21]} 37... Rg7 {[%clk 0:00:46.8]} 38. Kg5 {[%clk 0:01:20.4]} 38...
Rd7 {[%clk 0:00:37]} 39. Qh6# {[%clk 0:01:19.8]} 1-0

[Event "*** Titled Tuesday Blitz"]
[Site "Chess.com"]
[Date "2018.08.07"]
[Round "2"]
[White "WarlordX"]
[Black "Caisachess"]
[Result "0-1"]
[WhiteElo "2376"]
[BlackElo "2237"]
[TimeControl "180+2"]
[EndTime "13:20:09 PDT"]
[Termination "Caisachess won by resignation"]

1. d4 {[%clk 0:03:01.9]} 1... Nf6 {[%clk 0:03:00.6]} 2. c4 {[%clk 0:03:03]} 2...
e6 {[%clk 0:03:01.9]} 3. Nc3 {[%clk 0:03:04.4]} 3... Bb4 {[%clk 0:03:02.6]} 4.
Nf3 {[%clk 0:03:05.6]} 4... d6 {[%clk 0:02:59.3]} 5. Qb3 {[%clk 0:03:05.5]} 5...
c5 {[%clk 0:02:56.6]} 6. e3 {[%clk 0:03:05.6]} 6... b6 {[%clk 0:02:57.1]} 7. Bd2
{[%clk 0:03:06.2]} 7... Bb7 {[%clk 0:02:58.3]} 8. Bd3 {[%clk 0:03:06.2]} 8...
Bxc3 {[%clk 0:02:58.2]} 9. Bxc3 {[%clk 0:03:06.9]} 9... O-O {[%clk 0:02:59.7]}
10. Qc2 {[%clk 0:03:07.4]} 10... Nbd7 {[%clk 0:02:58.9]} 11. O-O {[%clk
0:03:05.3]} 11... h6 {[%clk 0:02:59.8]} 12. b4 {[%clk 0:03:04.2]} 12... Rc8
{[%clk 0:02:58.3]} 13. a4 {[%clk 0:03:02.9]} 13... cxb4 {[%clk 0:02:57.8]} 14.
Bxb4 {[%clk 0:03:04]} 14... Nb8 {[%clk 0:02:55.5]} 15. Qe2 {[%clk 0:02:58.2]}
15... Be4 {[%clk 0:02:49.1]} 16. Rfd1 {[%clk 0:02:49.3]} 16... Bxd3 {[%clk
0:02:43.5]} 17. Qxd3 {[%clk 0:02:51.2]} 17... Qc7 {[%clk 0:02:38.5]} 18. Rac1
{[%clk 0:02:50.7]} 18... Rfd8 {[%clk 0:02:38.2]} 19. e4 {[%clk 0:02:50.7]} 19...
Nc6 {[%clk 0:02:29.4]} 20. Bd2 {[%clk 0:02:47.3]} 20... Qb7 {[%clk 0:02:29]} 21.
h3 {[%clk 0:02:41.7]} 21... Qa6 {[%clk 0:02:27.9]} 22. d5 {[%clk 0:01:50.2]}
22... exd5 {[%clk 0:02:16]} 23. exd5 {[%clk 0:01:52.1]} 23... Na5 {[%clk
0:02:16.5]} 24. Bxa5 {[%clk 0:01:34]} 24... Qxa5 {[%clk 0:02:16.3]} 25. Ra1
{[%clk 0:01:29.6]} 25... Re8 {[%clk 0:01:54.9]} 26. Nd4 {[%clk 0:01:29.4]} 26...
Qc5 {[%clk 0:01:44.4]} 27. a5 {[%clk 0:01:26.2]} 27... Qxc4 {[%clk 0:01:42.7]}
28. axb6 {[%clk 0:01:21.3]} 28... axb6 {[%clk 0:01:41.5]} 29. Nf5 {[%clk
0:01:13.1]} 29... Qxd3 {[%clk 0:01:36.3]} 30. Rxd3 {[%clk 0:01:15]} 30... Re5
{[%clk 0:01:34.1]} 31. Nxd6 {[%clk 0:01:14.9]} 31... Rd8 {[%clk 0:01:34.5]} 32.
Nc4 {[%clk 0:01:10.9]} 32... Rexd5 {[%clk 0:01:35.7]} 33. Rxd5 {[%clk
0:01:12.1]} 33... Nxd5 {[%clk 0:01:35.8]} 34. Nxb6 {[%clk 0:01:14]} 34... Nxb6
{[%clk 0:01:36.5]} 35. Ra6 {[%clk 0:01:14.2]} 35... Nd5 {[%clk 0:01:36.5]} 36.
Ra3 {[%clk 0:01:14.7]} 36... Kf8 {[%clk 0:01:37.7]} 37. Ra7 {[%clk 0:01:15.5]}
37... Nf6 {[%clk 0:01:37.3]} 38. g3 {[%clk 0:01:15.5]} 38... Rd7 {[%clk
0:01:38]} 39. Ra8+ {[%clk 0:01:16.5]} 39... Ke7 {[%clk 0:01:39.3]} 40. Ra4
{[%clk 0:01:18.4]} 40... g6 {[%clk 0:01:40.4]} 41. Kg2 {[%clk 0:01:19.9]} 41...
h5 {[%clk 0:01:41.8]} 42. Ra5 {[%clk 0:01:21.1]} 42... Rd5 {[%clk 0:01:41.8]}
43. Ra7+ {[%clk 0:01:22.5]} 43... Ke6 {[%clk 0:01:43.2]} 44. Rb7 {[%clk
0:01:23.8]} 44... Rd6 {[%clk 0:01:44.4]} 45. Ra7 {[%clk 0:01:25.1]} 45... Rd2
{[%clk 0:01:42.9]} 46. Rb7 {[%clk 0:01:26.2]} 46... Ne4 {[%clk 0:01:43.7]} 47.
Kf3 {[%clk 0:01:27.8]} 47... Nxf2 {[%clk 0:01:43.3]} 48. Rb6+ {[%clk 0:01:28]}
48... Ke7 {[%clk 0:01:43.7]} 49. g4 {[%clk 0:01:28.6]} 49... h4 {[%clk 0:01:42]}
50. g5 {[%clk 0:01:29.3]} 50... Rc2 {[%clk 0:01:39.3]} 51. Rb7+ {[%clk
0:01:30.5]} 51... Kf8 {[%clk 0:01:39.9]} 52. Rb4 {[%clk 0:01:30]} 52... Nxh3
{[%clk 0:01:37.6]} 53. Kg4 {[%clk 0:01:29.1]} 53... Nxg5 {[%clk 0:01:34.9]} 54.
Kxg5 {[%clk 0:01:30.2]} 54... h3 {[%clk 0:01:36.3]} 55. Rh4 {[%clk 0:01:30.4]}
55... h2 {[%clk 0:01:37.3]} 56. Kf6 {[%clk 0:01:31.3]} 56... Rf2+ {[%clk
0:01:38.7]} 57. Ke5 {[%clk 0:01:32.6]} 57... Kg7 {[%clk 0:01:40]} 58. Rh3 {[%clk
0:01:33.5]} 58... g5 {[%clk 0:01:41.1]} 0-1

[Event "*** Titled Tuesday Blitz"]
[Site "Chess.com"]
[Date "2018.08.07"]
[Round "2"]
[White "krzyzan94"]
[Black "gkchesstiger"]
[Result "1-0"]
[WhiteElo "2627"]
[BlackElo "2767"]
[TimeControl "180+2"]
[EndTime "13:20:21 PDT"]
[Termination "krzyzan94 won by resignation"]

1. Nf3 {[%clk 0:03:01.9]} 1... Nf6 {[%clk 0:03:00.4]} 2. g3 {[%clk 0:03:01.7]}
2... d5 {[%clk 0:03:00.4]} 3. Bg2 {[%clk 0:03:03.6]} 3... c6 {[%clk 0:03:01.4]}
4. b3 {[%clk 0:03:02.7]} 4... Bf5 {[%clk 0:03:02.2]} 5. Bb2 {[%clk 0:03:04.1]}
5... e6 {[%clk 0:03:02.9]} 6. d3 {[%clk 0:03:04.2]} 6... h6 {[%clk 0:03:03.5]}
7. Nbd2 {[%clk 0:03:05.5]} 7... a5 {[%clk 0:03:02.9]} 8. c4 {[%clk 0:02:59.6]}
8... Be7 {[%clk 0:03:00.2]} 9. O-O {[%clk 0:03:00.1]} 9... O-O {[%clk
0:03:00.5]} 10. Ne5 {[%clk 0:02:59]} 10... Bh7 {[%clk 0:03:00.5]} 11. f4 {[%clk
0:02:58.4]} 11... Qb6+ {[%clk 0:02:58.7]} 12. Kh1 {[%clk 0:02:57.4]} 12... a4
{[%clk 0:02:54.7]} 13. Ndf3 {[%clk 0:02:37.8]} 13... Nbd7 {[%clk 0:02:21.9]} 14.
g4 {[%clk 0:02:32.8]} 14... Nxe5 {[%clk 0:02:17.6]} 15. Nxe5 {[%clk 0:02:34.7]}
15... axb3 {[%clk 0:02:14.8]} 16. Qxb3 {[%clk 0:02:22.3]} 16... Qxb3 {[%clk
0:01:33]} 17. axb3 {[%clk 0:02:24.2]} 17... Rfd8 {[%clk 0:01:31.9]} 18. g5
{[%clk 0:02:16.8]} 18... Ne8 {[%clk 0:01:32.1]} 19. Bh3 {[%clk 0:01:44.9]} 19...
Rxa1 {[%clk 0:01:22.8]} 20. Bxa1 {[%clk 0:01:40.4]} 20... Bf5 {[%clk 0:00:43.4]}
21. Bxf5 {[%clk 0:01:32.8]} 21... exf5 {[%clk 0:00:44.1]} 22. gxh6 {[%clk
0:01:32.3]} 22... gxh6 {[%clk 0:00:45.1]} 23. Nf3 {[%clk 0:01:22.2]} 23... Kh7
{[%clk 0:00:21.5]} 24. Nd4 {[%clk 0:01:16.3]} 24... Ng7 {[%clk 0:00:22]} 25. Nf3
{[%clk 0:01:01.7]} 25... Ne6 {[%clk 0:00:19.3]} 26. Be5 {[%clk 0:01:00.7]} 26...
f6 {[%clk 0:00:19.9]} 27. Ba1 {[%clk 0:00:59.3]} 27... d4 {[%clk 0:00:20.9]} 28.
Nh4 {[%clk 0:00:54.8]} 28... Ng7 {[%clk 0:00:21.8]} 29. Rg1 {[%clk 0:00:55.4]}
29... Bb4 {[%clk 0:00:22.1]} 30. Bxd4 {[%clk 0:00:55.7]} 30... Rxd4 {[%clk
0:00:22.5]} 31. Rxg7+ {[%clk 0:00:56.1]} 31... Kxg7 {[%clk 0:00:23.7]} 32. Nxf5+
{[%clk 0:00:56.7]} 32... Kg6 {[%clk 0:00:24.9]} 33. Nxd4 {[%clk 0:00:58.6]}
33... Bd2 {[%clk 0:00:25.7]} 34. f5+ {[%clk 0:00:57.9]} 34... Kg5 {[%clk
0:00:27.1]} 35. Nf3+ {[%clk 0:00:57.2]} 35... Kxf5 {[%clk 0:00:27.9]} 36. Nxd2
{[%clk 0:00:58.4]} 36... Kf4 {[%clk 0:00:27.7]} 37. Nf1 {[%clk 0:00:57.2]} 1-0

[Event "*** Titled Tuesday Blitz"]
[Site "Chess.com"]
[Date "2018.08.07"]
[Round "2"]
[White "Parhamov"]
[Black "Perecke"]
[Result "1-0"]
[WhiteElo "2751"]
[BlackElo "1910"]
[TimeControl "180+2"]
[EndTime "13:20:25 PDT"]
[Termination "Parhamov won by resignation"]

1. f4 {[%clk 0:03:01.9]} 1... d5 {[%clk 0:02:58.9]} 2. Nf3 {[%clk 0:03:01.2]}
2... Nc6 {[%clk 0:02:53.8]} 3. d4 {[%clk 0:02:58.7]} 3... Bf5 {[%clk 0:02:46.3]}
4. a3 {[%clk 0:02:52.1]} 4... Nf6 {[%clk 0:02:45.8]} 5. e3 {[%clk 0:02:51.9]}
5... e6 {[%clk 0:02:43.1]} 6. c4 {[%clk 0:02:51.8]} 6... Be7 {[%clk 0:02:42.4]}
7. Nc3 {[%clk 0:02:50]} 7... O-O {[%clk 0:02:42.6]} 8. Be2 {[%clk 0:02:48.3]}
8... Ne4 {[%clk 0:02:35.4]} 9. O-O {[%clk 0:02:47.6]} 9... f6 {[%clk 0:02:25.5]}
10. Bd2 {[%clk 0:02:43.2]} 10... Qd7 {[%clk 0:02:12.6]} 11. b4 {[%clk
0:02:40.5]} 11... a6 {[%clk 0:02:00.2]} 12. Rc1 {[%clk 0:02:26.7]} 12... Rad8
{[%clk 0:01:57.5]} 13. Be1 {[%clk 0:02:22.3]} 13... Kh8 {[%clk 0:01:27.9]} 14.
h3 {[%clk 0:02:07.1]} 14... e5 {[%clk 0:01:21.1]} 15. dxe5 {[%clk 0:02:03.8]}
15... fxe5 {[%clk 0:01:21]} 16. Nxd5 {[%clk 0:02:02.4]} 16... exf4 {[%clk
0:01:13.9]} 17. exf4 {[%clk 0:01:51]} 17... Bd6 {[%clk 0:00:54.9]} 18. Bd3
{[%clk 0:01:48.5]} 18... Ne7 {[%clk 0:00:44.6]} 19. Nd4 {[%clk 0:01:46.4]} 19...
c6 {[%clk 0:00:30.5]} 20. Nxf5 {[%clk 0:01:35.7]} 20... Qxf5 {[%clk 0:00:21.3]}
21. Nxe7 {[%clk 0:01:33.1]} 21... Bxe7 {[%clk 0:00:22.1]} 22. Qe2 {[%clk
0:01:33.8]} 22... Ng3 {[%clk 0:00:17.4]} 23. Bxg3 {[%clk 0:01:33.9]} 23... Qxd3
{[%clk 0:00:18.4]} 24. Qxe7 {[%clk 0:01:30.7]} 24... Qxg3 {[%clk 0:00:18.9]} 25.
Rf3 {[%clk 0:01:32.3]} 25... Qg6 {[%clk 0:00:19.1]} 26. Kh2 {[%clk 0:01:32.7]}
26... Rfe8 {[%clk 0:00:19.1]} 27. Qxb7 {[%clk 0:01:33.2]} 27... Qf6 {[%clk
0:00:15.1]} 28. Qxa6 {[%clk 0:01:25.9]} 28... Re2 {[%clk 0:00:14.7]} 29. Rg1
{[%clk 0:01:26.3]} 29... h6 {[%clk 0:00:14.5]} 30. b5 {[%clk 0:01:27.4]} 30...
Rdd2 {[%clk 0:00:13.8]} 31. Qxc6 {[%clk 0:01:25.9]} 31... Rd6 {[%clk 0:00:10.7]}
32. Qc5 {[%clk 0:01:19.5]} 32... Rdd2 {[%clk 0:00:10]} 33. Qc8+ {[%clk
0:01:14.9]} 33... Kh7 {[%clk 0:00:10.6]} 34. Qg4 {[%clk 0:01:15.7]} 34... Qb2
{[%clk 0:00:05.5]} 35. f5 {[%clk 0:01:15.3]} 1-0